[Event "Mitropa Cup Open 2024"]
[Site "Apolda"]
[Date "2024.02.16"]
[Round "2.7"]
[White "Pasztor, Balazs"]
[Black "Stalmach, Richard"]
[Result "1/2-1/2"]
[ECO "B90"]
[WhiteElo "2395"]
[BlackElo "2433"]
[Annotator "RC"]
[PlyCount "160"]
[EventDate "2024.02.15"]
[EventType "team-tourn"]
[EventCountry "GER"]
[SourceTitle "playchess.com"]
[Source "ChessBase"]
[SourceQuality "1"]
[WhiteTeam "Hungary"]
[BlackTeam "Czech Republic"]
[WhiteTeamCountry "HUN"]
[BlackTeamCountry "CZE"]
[TimeControl "40/5400+30:1800+30"]

1. e4 {[%emt 0:00:03]} c5 {[%emt 0:00:11]} 2. Nf3 {[%emt 0:00:07]} d6 {[%emt 0:00:30]} 3. d4 {[%emt 0:00:08]} cxd4 {[%emt 0:00:10]} 4. Nxd4 {[%emt 0:00:08]} Nf6 {[%emt 0:00:05]} 5. Nc3 {[%emt 0:00:08]} a6 {[%emt 0:00:26]} 6. Rg1 {[%emt 0:03:20]} b5 {[%emt 0:02:42]} 7. a4 {[%emt 0:00:19]} b4 {[%emt 0:00:46]} 8. Nd5 {[%emt 0:00:19]} Nxd5 {[%emt 0:00:25]} 9. exd5 {[%emt 0:00:13]} Bb7 {[%emt 0:00:16]} 10. Nf5 {[%emt 0:03:08]} Qc7 {[%emt 0:00:57]} 11. Qd4 {[%emt 0:04:07]} e5 {[%emt 0:18:13]} 12. Qc4 {[%emt 0:02:53]} Qxc4 {[%emt 0:06:40]} 13. Bxc4 {[%emt 0:00:08]} Nd7 {[%emt 0:05:01]} 14. a5 {[%emt 0:01:39]} Rc8 {[%emt 0:08:53]} 15. b3 {[%emt 0:05:37]} g6 {[%emt 0:16:51]} 16. Ne3 {[%emt 0:00:25]} f5 {[%emt 0:05:56]} 17. Ra4 {[%emt 0:20:45]} f4 {[%emt 0:00:11]} 18. Rxb4 {[%emt 0:02:30]} Nc5 {[%emt 0:00:13]} 19. Nd1 {[%emt 0:07:39]} Be7 {[%emt 0:00:05]} 20. Bd2 {[%emt 0:05:16]} Rb8 {[%emt 0:03:00]} 21. Rb6 {[%emt 0:17:58]} Bd8 {[%emt 0:01:11]} 22. Rxd6 {[%emt 0:00:26]} Bc7 {[%emt 0:00:09]} 23. Rb6 {[%emt 0:01:20]} Bxb6 {[%emt 0:00:04]} 24. axb6 {[%emt 0:00:05]} Nd7 {[%emt 0:01:59]} 25. Ba5 {[%emt 0:04:03]} Bc8 {[%emt 0:02:23]} 26. Bd3 {[%emt 0:02:24]} Nxb6 {[%emt 0:01:40]} 27. c4 {[%emt 0:00:09]} Bf5 {[%emt 0:02:43]} 28. Kd2 {[%emt 0:00:27]} Nd7 {[%emt 0:03:02]} 29. b4 {[%emt 0:00:46]} O-O {[%emt 0:09:34]} 30. Re1 {[%emt 0:09:40]} f3 {[%emt 0:05:16]} 31. gxf3 {[%emt 0:03:27]} Bxd3 {[%emt 0:00:30]} 32. Kxd3 {[%emt 0:00:06]} Rxf3+ {[%emt 0:00:03]} 33. Re3 {[%emt 0:00:39]} Rf4 {[%emt 0:00:30]} 34. Re4 {[%emt 0:01:41]} Rbf8 {[%emt 0:02:55]} 35. d6 {[%emt 0:02:20]} Rf3+ {[%emt 0:01:13]} 36. Ke2 {[%emt 0:01:03]} R8f4 {[%emt 0:02:32]} 37. Rxf4 {[%emt 0:01:02]} Rxf4 {[%emt 0:00:04]} 38. c5 {[%emt 0:00:47]} Nb8 {[%emt 0:01:30]} 39. d7 {[%emt 0:02:01]} Nxd7 {[%emt 0:00:07]} 40. c6 {[%emt 0:00:20]} Nf6 {[%emt 0:01:02]} 41. Nb2 {[%emt 0:09:48]} Re4+ {[%emt 0:07:18]} 42. Kf1 {[%emt 0:05:10]} Nd5 {[%emt 0:00:56]} 43. c7 {[%emt 0:02:14]} Nxc7 {[%emt 0:03:38]} 44. Bxc7 {[%emt 0:00:16]} Rxb4 {[%emt 0:00:04]} 45. Nd3 {[%emt 0:01:24]} Rb1+ {[%emt 0:01:22]} 46. Ke2 {[%emt 0:00:08]} e4 {[%emt 0:00:06]} 47. Nc5 {[%emt 0:01:09]} Rc1 {[%emt 0:00:09]} 48. Bd6 {[%emt 0:02:51]} Kf7 {[%emt 0:03:10]} 49. Ke3 {[%emt 0:00:14]} a5 {[%emt 0:00:49]} 50. Kd4 {[%emt 0:00:53]} Kf6 {[%emt 0:04:58]} 51. Nxe4+ {[%emt 0:01:38]} Kf5 {[%emt 0:00:03]} 52. f3 {[%emt 0:01:22]} h5 {[%emt 0:01:49]} 53. h4 {[%emt 0:00:39]} Ke6 {[%emt 0:00:29]} 54. Bf4 {[%emt 0:00:47]} Rh1 {[%emt 0:00:55]} 55. Bg5 {[%emt 0:00:10]} Rf1 {[%emt 0:02:11]} 56. Nd2 {[%emt 0:00:40]} Ra1 {[%emt 0:01:03]} 57. Kc4 {[%emt 0:01:31]} a4 {[%emt 0:01:09]} 58. Kb4 {[%emt 0:01:13]} Kd5 {[%emt 0:00:30]} 59. Ne4 {[%emt 0:00:21]} a3 {[%emt 0:02:08]} 60. Kb3 {[%emt 0:00:31]} Rb1+ {[%emt 0:02:06]} 61. Kxa3 {[%emt 0:00:48]} Kd4 {[%emt 0:00:06]} 62. Ka4 {[%emt 0:01:24]} Rb8 {[%emt 0:00:39]} 63. Ka5 {[%emt 0:00:53]} Rb3 {[%emt 0:02:07]} 64. Nd2 {[%emt 0:01:03]} Rb8 {[%emt 0:00:04]} 65. Ka6 {[%emt 0:00:42]} Kd3 {[%emt 0:00:56]} 66. Ne4 {[%emt 0:02:10]} Ke2 {[%emt 0:02:41]} 67. f4 {[%emt 0:00:34]} Kf3 {[%emt 0:00:05]} 68. Nf6 {[%emt 0:00:17]} Rb4 {[%emt 0:01:15]} 69. Nd5 {[%emt 0:00:26]} Rd4 {[%emt 0:00:45]} 70. Ne7 {[%emt 0:00:13]} Rxf4 {[%emt 0:00:17]} 71. Nxg6 {[%emt 0:00:26]} Rb4 {[%emt 0:00:09]} 72. Ka5 {[%emt 0:00:36]} Rb1 {[%emt 0:00:04]} 73. Ne7 {[%emt 0:00:55]} Kg3 {[%emt 0:00:38]} 74. Ng6 {[%emt 0:00:56]} Kg4 {[%emt 0:00:24]} 75. Ka4 {[%emt 0:00:15]} Kf5 {[%emt 0:00:37]} 76. Ne7+ {[%emt 0:00:10]} Ke6 {[%emt 0:00:45]} 77. Ka3 {[%emt 0:00:24]} Rg1 {[%emt 0:00:13]} 78. Ng6 {[%emt 0:01:07]} Kf5 {[%emt 0:01:08]} 79. Nf4 {[%emt 0:00:19]} Rxg5 {[%emt 0:00:14]} 80. hxg5 {[%emt 0:00:04]} Kxg5 {[%emt 0:00:10]} 1/2-1/2

[Event "Mitropa Cup Open 2024"]
[Site "Apolda"]
[Date "2024.02.16"]
[Round "2.8"]
[White "Nemec, Jachym"]
[Black "Karacsonyi, Gellert"]
[Result "1-0"]
[ECO "D31"]
[WhiteElo "2393"]
[BlackElo "2398"]
[Annotator "TA"]
[PlyCount "89"]
[EventDate "2024.02.15"]
[EventType "team-tourn"]
[EventCountry "GER"]
[SourceTitle "playchess.com"]
[Source "ChessBase"]
[SourceQuality "1"]
[WhiteTeam "Czech Republic"]
[BlackTeam "Hungary"]
[WhiteTeamCountry "CZE"]
[BlackTeamCountry "HUN"]
[TimeControl "40/5400+30:1800+30"]

{[%evp 9,89,41,37,41,37,22,44,15,38,39,35,33,31,27,74,58,50,50,58,24,52,43,43,47,46,26,27,31,56,60,64,43,63,25,89,19,24,10,7,0,3,10,9,0,112,103,105,105,469,210,205,217,305,258,309,322,369,366,510,510,641,639,586,613,599,593,559,550,588,554,1266,691,914,755,779,779,2339,2069,1968,798,728,553]} 1. d4 {[%emt 0:00:03]} d5 {[%emt 0:00:10]} 2. c4 {[%emt 0:00:12]} e6 {[%emt 0:00:09]} 3. Nc3 {[%emt 0:00:12]} h6 {[%emt 0:00:12]} 4. Bf4 {[%emt 0:04:51]} Bd6 {[%emt 0:02:08]} 5. Bxd6 {[%emt 0:00:15]} Qxd6 {[%emt 0:00:10]} 6. e3 {[%emt 0:00:36]} Nf6 {[%emt 0:02:09]} 7. Nf3 {[%emt 0:00:22]} O-O {[%emt 0:04:00]} 8. Qc2 {[%emt 0:02:25] White is slightly better.} Nc6 {[%emt 0:11:37]} 9. c5 {[%emt 0:05:32]} Qe7 {[%emt 0:00:15]} 10. Bb5 {[%emt 0:00:09]} Nd8 {[%emt 0:06:34]} 11. O-O {[%emt 0:02:29]} b6 {[%emt 0:03:11]} (11... a6 $11 {should be considered.} 12. Be2 Nc6) 12. b4 {[%emt 0:02:46] White has more active pieces.} a6 {[%emt 0:00:33]} 13. Ba4 {[%emt 0:10:27]} Bd7 {[%emt 0:05:11]} 14. Rfe1 {[%emt 0:08:07]} Bxa4 {[%emt 0:04:48]} 15. Qxa4 {[%emt 0:00:27]} Qe8 {[%emt 0:12:56]} 16. Ne5 {[%emt 0:07:10]} bxc5 {[%emt 0:08:07]} 17. bxc5 {[%emt 0:04:12]} Qxa4 {[%emt 0:00:10]} 18. Nxa4 {[%emt 0:00:05]} Nb7 {[%emt 0:00:06]} 19. Rab1 {[%emt 0:12:15]} Na5 {[%emt 0:00:51]} 20. f3 {[%emt 0:01:09] Wards off Ne4} Rfd8 {[%emt 0:05:23]} 21. Kf2 {[%emt 0:09:57]} Kf8 {[%emt 0:00:48]} (21... Nd7 $11 {keeps the balance.}) 22. Nc3 {[%emt 0:01:35]} (22. c6 $1 $16) 22... Nd7 $11 {[%emt 0:03:45][%cal Bf6d7,Bd7b8,Bb8c6][%mdl 32]} 23. Nd3 {[%emt 0:00:43][%cal Be5d3,Bd3f4,Bf4e6,Be6c7][%mdl 32]} Nb8 {[%emt 0:00:40]} 24. Rb4 {[%emt 0:05:44]} Nbc6 {[%emt 0:00:50]} 25. Ra4 {[%emt 0:00:06]} Nc4 {[%emt 0:09:44]} 26. Rb1 {[%emt 0:00:49]} f6 {[%emt 0:04:09]} (26... a5 $11) 27. Nf4 $16 {[%emt 0:02:44]} Kf7 {[%emt 0:06:28] [#]} 28. e4 $1 $36 {[%emt 0:03:35][%cal Be3e4,Be4d5,Bd5d6][%mdl 2080] Black is under strong pressure.} Nd2 $2 {[%emt 0:02:29][%mdl 8192] Black cannot hold the game after this.} (28... Ne7 $16 {is tougher.}) 29. Rd1 {[%emt 0:01:31]} (29. Rb7 $142 dxe4 30. Rxc7+ Ne7 31. d5 (31. fxe4 g5 $18) (31. Nxe4 Nxe4+ 32. fxe4 g5 $18)) 29... Nc4 $18 {[%emt 0:00:01] [#] Threatens to win with ...Nb2.} 30. Nxe6 $1 {[%emt 0:05:21]} Nb2 {[%emt 0:01:46]} (30... Kxe6 $142 31. exd5+ Kf7) 31. Nxc7 {[%emt 0:02:03]} (31. Nxd8+ $6 Rxd8 32. Ke3 (32. Rxa6 Nxd1+ 33. Nxd1 Nxd4 $11) 32... dxe4 $16) 31... Nxa4 {[%emt 0:02:12]} 32. Nxa4 {[%emt 0:00:05]} Rab8 {[%emt 0:02:05]} 33. exd5 {[%emt 0:00:35]} Nb4 {[%emt 0:00:42]} 34. d6 {[%emt 0:00:12] White is clearly winning.} Nxa2 {[%emt 0:00:31]} 35. Re1 {[%emt 0:01:15]} (35. Nxa6 Ra8 36. Ra1 (36. Rd2 Nc1 $14) 36... Rxa6 37. Rxa2 Rda8 $11) 35... Kg6 {[%emt 0:02:23]} 36. Re7 {[%emt 0:01:00][%cal Oc7e6] Ne6! is the strong threat.} Nb4 {[%emt 0:00:43]} 37. Ne6 {[%emt 0:00:25]} Rg8 {[%emt 0:00:01]} 38. Nb6 {[%emt 0:00:44] Wards off Nd5} a5 {[%emt 0:00:20][%cal Ba6a5,Ba5a4][%mdl 32]} 39. g4 {[%emt 0:03:05]} a4 {[%emt 0:00:30]} 40. Ra7 {[%emt 0:00:55]} Rbe8 {[%emt 0:01:07]} 41. d5 {[%emt 0:32:28]} Nd3+ {[%emt 0:08:05]} 42. Kg3 {[%emt 0:00:00][%cal Oc5c6] Strongly threatening c6!} Rxe6 {[%emt 0:01:25]} 43. dxe6 {[%emt 0:00:00]} Nxc5 {[%emt 0:00:04]} 44. e7 {[%emt 0:00:00]} (44. Nd5 $142 Nxe6 45. f4 (45. Rxa4 Rd8 $16) (45. Ne7+ Kh7 $18)) 44... Kf7 {[%emt 0:00:28]} 45. Rc7 {[%emt 0:00:00] Weighted Error Value: White=0.36/Black=0.43.  Loses game:     	---       	Black=1      Mistake:       	White=2     	Black=4      Inaccurate:     	White=4     	Black=4      OK:         	White=14    	Black=12     Best:        	White=1     	---        Strong:       	White=2     	---} 1-0

[Event "Mitropa Cup Open 2024"]
[Site "Apolda"]
[Date "2024.02.16"]
[Round "2.9"]
[White "Moroni, Luca Jr"]
[Black "Subelj, Jan"]
[Result "0-1"]
[ECO "D02"]
[WhiteElo "2601"]
[BlackElo "2512"]
[Annotator "TA"]
[PlyCount "70"]
[EventDate "2024.02.15"]
[EventType "team-tourn"]
[EventCountry "GER"]
[SourceTitle "playchess.com"]
[Source "ChessBase"]
[SourceQuality "1"]
[WhiteTeam "Italy"]
[BlackTeam "Slovenia"]
[WhiteTeamCountry "ITA"]
[BlackTeamCountry "SLO"]
[TimeControl "40/5400+30:1800+30"]

{[%evp 10,70,30,21,27,19,33,25,23,28,35,31,30,19,48,41,55,35,25,39,31,7,10,17,20,0,0,0,0,-6,-9,-50,-51,-65,-41,-39,-42,-39,-16,-41,-36,-281,-295,-295,-259,-285,-275,-289,-290,-341,-280,-399,-390,-383,-383,-405,-402,-416,-417,-406,-408,-409,-413]} 1. Nf3 {[%emt 0:00:04]} d5 {[%emt 0:00:33]} 2. g3 {[%emt 0:00:09]} Nc6 {[%emt 0:00:57]} 3. d4 {[%emt 0:01:23]} Bf5 {[%emt 0:00:52]} 4. Bg2 {[%emt 0:01:30]} e6 {[%emt 0:01:01]} 5. O-O {[%emt 0:02:28]} Nb4 {[%emt 0:00:26]} 6. Na3 {[%emt 0:02:16][%cal Bb1a3,Ba3c2,Bc2e3][%mdl 32]} Nc6 {[%emt 0:02:03]} 7. b3 {[%emt 0:02:36]} h6 {[%emt 0:05:11]} 8. Bb2 {[%emt 0:07:36]} Nf6 {[%emt 0:01:18] White has an edge.} 9. c4 {[%emt 0:04:59]} Be7 {[%emt 0:01:07]} 10. Nc2 {[%emt 0:08:25]} O-O {[%emt 0:04:43]} 11. Ne5 {[%emt 0:07:42]} Nb4 {[%emt 0:09:09][%cal Bc6b4,Bb4a6,Ba6b8,Bb8d7][%mdl 32]} 12. Ne3 {[%emt 0:11:41] [#] Strongly threatening a3.} Be4 {[%emt 0:02:17]} 13. f3 {[%emt 0:01:22]} Bh7 {[%emt 0:00:16]} 14. a3 {[%emt 0:01:01] Dodges c5} Na6 {[%emt 0:02:43]} 15. c5 {[%emt 0:06:28]} c6 {[%emt 0:01:27]} 16. b4 {[%emt 0:00:29]} Nb8 {[%emt 0:04:04]} 17. Bc3 {[%emt 0:12:16][%cal Bb2c3,Bc3e1,Be1g3][%mdl 32]} Nbd7 {[%emt 0:02:20]} 18. Nd3 {[%emt 0:01:14]} b6 {[%emt 0:08:08]} 19. Rc1 {[%emt 0:10:39]} Qc7 {[%emt 0:05:21]} 20. g4 {[%emt 0:02:04]} Rfe8 {[%emt 0:03:13]} 21. Be1 {[%emt 0:00:43]} bxc5 {[%emt 0:01:03] Black is more active.} 22. bxc5 {[%emt 0:00:59]} Bd8 {[%emt 0:06:18]} 23. Bg3 {[%emt 0:02:22]} Qc8 {[%emt 0:03:14]} 24. Qa4 {[%emt 0:02:04]} Bc7 {[%emt 0:02:30]} 25. Qxc6 $2 {[%emt 0:03:52] [#] This costs White the game.} ({White should play} 25. f4 $15) 25... Bf4 $1 $19 {[%emt 0:00:17][%mdl 512]} 26. Qxc8 {[%emt 0:01:46]} Bxe3+ {[%emt 0:00:06]} 27. Bf2 {[%emt 0:00:03]} Bxf2+ {[%emt 0:00:05]} (27... Raxc8 28. Bxe3 Bxd3 29. exd3 $16) 28. Kxf2 {[%emt 0:00:04]} Raxc8 {[%emt 0:01:12]} 29. c6 {[%emt 0:00:06]} Nb8 {[%emt 0:00:46]} 30. Ne5 {[%emt 0:00:45]} (30. c7 {was worth a try.} Na6 31. Ne5) 30... Rc7 {[%emt 0:00:07] Black is winning.} 31. Rc5 {[%emt 0:00:05]} Rec8 {[%emt 0:00:04][%cal Of6e8]} 32. Rfc1 {[%emt 0:00:06]} Ne8 {[%emt 0:00:18]} 33. e4 {[%emt 0:00:49]} dxe4 {[%emt 0:00:35]} 34. fxe4 {[%emt 0:00:07]} f6 {[%emt 0:00:05]} 35. Nd7 {[%emt 0:00:38]} Nxc6 {[%emt 0:00:45] Weighted Error Value: White=0.28 (precise) /Black=0.07 (flawless) .  Loses game:     	White=1     	---        Mistake:       	White=1     	---        Inaccurate:     	White=1     	Black=1      OK:         	White=8     	Black=17     Best:        	White=2     	Black=2      Brilliant:      	---       	Black=1} 0-1

[Event "Mitropa Cup Open 2024"]
[Site "Apolda"]
[Date "2024.02.16"]
[Round "2.10"]
[White "Goroshkov, Maksym"]
[Black "David, Alberto"]
[Result "1-0"]
[ECO "E32"]
[WhiteElo "2338"]
[BlackElo "2525"]
[Annotator "ChessBase"]
[PlyCount "227"]
[EventDate "2024.02.15"]
[EventType "team-tourn"]
[EventCountry "GER"]
[SourceTitle "playchess.com"]
[Source "ChessBase"]
[SourceQuality "1"]
[WhiteTeam "Slovenia"]
[BlackTeam "Italy"]
[WhiteTeamCountry "SLO"]
[BlackTeamCountry "ITA"]
[TimeControl "40/5400+30:1800+30"]

1. d4 {[%emt 0:00:14]} Nf6 {[%emt 0:00:21]} 2. c4 {[%emt 0:00:08]} e6 {[%emt 0:00:35]} 3. Nc3 {[%emt 0:00:41]} Bb4 {[%emt 0:01:32]} 4. Qc2 {[%emt 0:01:46]} d6 {[%emt 0:01:22]} 5. e4 {[%emt 0:00:21]} Nbd7 {[%emt 0:10:45]} 6. Nf3 {[%emt 0:01:47]} Bxc3+ {[%emt 0:04:39]} 7. bxc3 {[%emt 0:00:14]} e5 {[%emt 0:00:06]} 8. Bd3 {[%emt 0:14:24]} O-O {[%emt 0:04:57]} 9. O-O {[%emt 0:00:08]} Re8 {[%emt 0:00:32]} 10. c5 {[%emt 0:07:32]} h6 {[%emt 0:03:59]} 11. cxd6 {[%emt 0:03:17]} cxd6 {[%emt 0:00:06]} 12. Ba3 {[%emt 0:01:47]} Qc7 {[%emt 0:08:09]} 13. Rad1 {[%emt 0:03:34]} d5 {[%emt 0:14:58]} 14. Nxe5 {[%emt 0:03:07]} dxe4 {[%emt 0:01:28]} 15. Bb5 {[%emt 0:07:21]} a6 {[%emt 0:00:55]} 16. Bxd7 {[%emt 0:19:59]} Bxd7 {[%emt 0:07:09]} 17. Nxd7 {[%emt 0:01:29]} Qxd7 {[%emt 0:03:22]} 18. d5 {[%emt 0:00:12]} Rac8 {[%emt 0:01:09]} 19. d6 {[%emt 0:02:47]} Re5 {[%emt 0:12:32]} 20. c4 {[%emt 0:03:01]} b5 {[%emt 0:00:44]} 21. c5 {[%emt 0:00:31]} a5 {[%emt 0:00:04]} 22. Qd2 {[%emt 0:03:28]} Rg5 {[%emt 0:04:34]} 23. f4 {[%emt 0:01:24]} exf3 {[%emt 0:03:09]} 24. Rxf3 {[%emt 0:00:05]} b4 {[%emt 0:03:04]} 25. Bb2 {[%emt 0:00:32]} Ne4 {[%emt 0:01:17]} 26. Qe3 {[%emt 0:01:19]} Nxc5 {[%emt 0:02:36]} 27. Rg3 {[%emt 0:01:16]} Ne6 {[%emt 0:01:19]} 28. Rxg5 {[%emt 0:01:00]} hxg5 {[%emt 0:00:05]} 29. Rd2 {[%emt 0:02:00]} a4 {[%emt 0:05:35]} 30. h3 {[%emt 0:00:02]} a3 {[%emt 0:01:24]} 31. Be5 {[%emt 0:00:02]} f6 {[%emt 0:01:10]} 32. Bg3 {[%emt 0:00:04]} Rc3 {[%emt 0:00:05]} 33. Qe1 {[%emt 0:00:48]} b3 {[%emt 0:01:09]} 34. axb3 {[%emt 0:00:06]} Rxb3 {[%emt 0:00:36]} 35. Kh2 {[%emt 0:00:07]} Kf7 {[%emt 0:01:36]} 36. Qd1 {[%emt 0:00:03]} Re3 {[%emt 0:00:33]} 37. Qh5+ {[%emt 0:02:16]} Kg8 {[%emt 0:00:13]} 38. Qg4 {[%emt 0:00:14]} g6 {[%emt 0:00:50]} 39. Qb4 {[%emt 0:00:53]} f5 {[%emt 0:00:37]} 40. Bf2 {[%emt 0:00:18]} Re4 {[%emt 0:00:31]} 41. Qxa3 {[%emt 0:31:31]} Ra4 {[%emt 0:04:46]} 42. Qb2 {[%emt 0:00:00]} Ra8 {[%emt 0:02:28]} 43. Qf6 {[%emt 0:00:00]} Qf7 {[%emt 0:00:04]} 44. Qe5 {[%emt 0:00:00]} Re8 {[%emt 0:04:32]} 45. Bb6 {[%emt 0:00:00]} Nf8 {[%emt 0:01:12]} 46. Qg3 {[%emt 0:00:00]} Nd7 {[%emt 0:00:07]} 47. Bd4 {[%emt 0:00:00]} g4 {[%emt 0:05:52]} 48. hxg4 {[%emt 0:00:00]} f4 {[%emt 0:00:55]} 49. Qh3 {[%emt 0:00:00]} Qh7 {[%emt 0:00:42]} 50. Qxh7+ {[%emt 0:00:00]} Kxh7 {[%emt 0:00:03]} 51. g5 {[%emt 0:00:00]} Kg8 {[%emt 0:04:05]} 52. Kh3 {[%emt 0:00:00]} Re6 {[%emt 0:02:21]} 53. Bf6 {[%emt 0:00:00]} Kf7 {[%emt 0:00:59]} 54. Rd4 {[%emt 0:00:00]} Re3+ {[%emt 0:04:34]} 55. Kg4 {[%emt 0:00:00]} Ke6 {[%emt 0:00:09]} 56. Kxf4 {[%emt 0:00:00]} Re2 {[%emt 0:00:25]} 57. Kg3 {[%emt 0:00:00]} Re3+ {[%emt 0:01:39]} 58. Kf2 {[%emt 0:00:00]} Ra3 {[%emt 0:00:45]} 59. Rd2 {[%emt 0:00:00]} Ra4 {[%emt 0:00:53]} 60. g3 {[%emt 0:00:00]} Nc5 {[%emt 0:01:05]} 61. Kg2 {[%emt 0:00:00]} Nd7 {[%emt 0:00:52]} 62. Kh3 {[%emt 0:00:00]} Re4 {[%emt 0:00:17]} 63. Be7 {[%emt 0:00:00]} Ne5 {[%emt 0:01:32]} 64. Rf2 {[%emt 0:00:00]} Nd7 {[%emt 0:01:05]} 65. Ra2 {[%emt 0:00:00]} Re3 {[%emt 0:00:44]} 66. Ra8 {[%emt 0:00:00]} Rb3 {[%emt 0:00:36]} 67. Rg8 {[%emt 0:00:00]} Kf7 {[%emt 0:00:12]} 68. Rd8 {[%emt 0:00:00]} Ke6 {[%emt 0:00:15]} 69. Rg8 {[%emt 0:00:00]} Kf7 {[%emt 0:00:04]} 70. Rh8 {[%emt 0:00:00]} Kg7 {[%emt 0:00:27]} 71. Rh4 {[%emt 0:00:29]} Rd3 {[%emt 0:00:33]} 72. Rf4 {[%emt 0:00:13]} Rd2 {[%emt 0:00:25]} 73. Bf6+ {[%emt 0:00:40]} Kg8 {[%emt 0:00:40]} 74. Be7 {[%emt 0:00:12]} Kg7 {[%emt 0:00:05]} 75. Rf1 {[%emt 0:00:19]} Rd3 {[%emt 0:00:24]} 76. Kg2 {[%emt 0:00:12]} Rd2+ {[%emt 0:00:14]} 77. Kf3 {[%emt 0:00:07]} Rd3+ {[%emt 0:00:12]} 78. Kf4 {[%emt 0:00:57]} Rd4+ {[%emt 0:00:17]} 79. Ke3 {[%emt 0:00:05]} Ra4 {[%emt 0:01:13]} 80. Rf4 {[%emt 0:00:36]} Ra3+ {[%emt 0:00:07]} 81. Kd4 {[%emt 0:01:09]} Ra5 {[%emt 0:01:10]} 82. Rf1 {[%emt 0:00:39]} Rb5 {[%emt 0:00:22]} 83. Kc4 {[%emt 0:00:20]} Rc5+ {[%emt 0:00:10]} 84. Kb4 {[%emt 0:00:27]} Rd5 {[%emt 0:00:08]} 85. g4 {[%emt 0:00:29]} Kg8 {[%emt 0:00:11]} 86. Kc4 {[%emt 0:00:36]} Rc5+ {[%emt 0:00:08]} 87. Kd4 {[%emt 0:00:06]} Rb5 {[%emt 0:00:18]} 88. Rf2 {[%emt 0:02:45]} Kg7 {[%emt 0:00:19]} 89. Ke4 {[%emt 0:00:24]} Re5+ {[%emt 0:00:12]} 90. Kd3 {[%emt 0:00:15]} Rd5+ {[%emt 0:00:11]} 91. Kc4 {[%emt 0:00:33]} Nb6+ {[%emt 0:00:18]} 92. Kb4 {[%emt 0:00:10]} Nd7 {[%emt 0:00:05]} 93. Kc3 {[%emt 0:00:57]} Kg8 {[%emt 0:00:07]} 94. Rf4 {[%emt 0:02:13]} Kg7 {[%emt 0:00:16]} 95. Rf2 {[%emt 0:06:59]} Kg8 {[%emt 0:00:14]} 96. Rb2 {[%emt 0:02:13]} Kf7 {[%emt 0:00:22]} 97. Rf2+ {[%emt 0:00:24]} Ke6 {[%emt 0:01:52]} 98. Re2+ {[%emt 0:00:05]} Kf7 {[%emt 0:00:11]} 99. Kb4 {[%emt 0:01:11]} Kg8 {[%emt 0:00:48]} 100. Rf2 {[%emt 0:00:54]} Kg7 {[%emt 0:00:10]} 101. Kc4 {[%emt 0:00:06]} Nb6+ {[%emt 0:00:03]} 102. Kc3 {[%emt 0:00:04]} Nd7 {[%emt 0:00:13]} 103. Rf4 {[%emt 0:23:23]} Kg8 {[%emt 0:04:33]} 104. Rd4 {[%emt 0:00:04]} Ra5 {[%emt 0:01:11]} 105. Kb4 {[%emt 0:00:36]} Ra6 {[%emt 0:00:41]} 106. Bd8 {[%emt 0:00:36]} Ra8 {[%emt 0:01:04]} 107. Bc7 {[%emt 0:00:11]} Kf7 {[%emt 0:00:24]} 108. Kb5 {[%emt 0:00:28]} Re8 {[%emt 0:00:36]} 109. Kc6 {[%emt 0:00:22]} Ne5+ {[%emt 0:00:04]} 110. Kd5 {[%emt 0:00:04]} Nd7 {[%emt 0:00:14]} 111. Rf4+ {[%emt 0:00:12]} Kg7 {[%emt 0:01:48]} 112. Kc6 {[%emt 0:00:25]} Ne5+ {[%emt 0:00:05]} 113. Kb7 {[%emt 0:00:06]} Nd7 {[%emt 0:00:25]} 114. Bb6 {[%emt 0:01:06]} 1-0